[Event "Early-Titled-Tuesday-Blitz-October-03-2023"]
[Site "Chess.com"]
[Date "2023.10.03"]
[Round "1"]
[White "igorkovalenko"]
[Black "venturov"]
[Result "1-0"]
[WhiteElo "2869"]
[BlackElo "2485"]
[TimeControl "180+1"]
[EndTime "8:04:52 PDT"]
[Termination "igorkovalenko won by resignation"]

1. c4 {[%clk 0:03:00.8]} 1... e6 {[%clk 0:02:59]} 2. b3 {[%clk 0:03:00.6]} 2...
Nf6 {[%clk 0:02:56.9]} 3. Bb2 {[%clk 0:03:00.4]} 3... c5 {[%clk 0:02:55.4]} 4.
e3 {[%clk 0:03:00.1]} 4... Be7 {[%clk 0:02:53.9]} 5. g3 {[%clk 0:02:59.7]} 5...
O-O {[%clk 0:02:44.6]} 6. Bg2 {[%clk 0:02:59.4]} 6... d5 {[%clk 0:02:43.4]} 7.
f4 {[%clk 0:02:59.6]} 7... Nc6 {[%clk 0:02:42.5]} 8. Nf3 {[%clk 0:02:59.6]} 8...
d4 {[%clk 0:02:41.4]} 9. O-O {[%clk 0:02:59.6]} 9... Rb8 {[%clk 0:02:29.9]} 10.
Qe2 {[%clk 0:02:59.1]} 10... a6 {[%clk 0:02:27.1]} 11. exd4 {[%clk 0:02:31.6]}
11... cxd4 {[%clk 0:02:26.2]} 12. d3 {[%clk 0:02:31.6]} 12... b5 {[%clk
0:02:18.9]} 13. Nbd2 {[%clk 0:02:31.2]} 13... Bb7 {[%clk 0:02:11.6]} 14. Rac1
{[%clk 0:02:28.5]} 14... Qb6 {[%clk 0:02:10.2]} 15. h3 {[%clk 0:02:26.6]} 15...
Rbd8 {[%clk 0:02:10.3]} 16. Kh2 {[%clk 0:02:26.4]} 16... Rfe8 {[%clk 0:01:54.8]}
17. Rf2 {[%clk 0:02:24.3]} 17... h6 {[%clk 0:01:41.2]} 18. Rcf1 {[%clk
0:02:23.5]} 18... Bf8 {[%clk 0:01:40.9]} 19. Ne5 {[%clk 0:02:22.6]} 19... Nd7
{[%clk 0:01:34.7]} 20. Nxd7 {[%clk 0:02:16.4]} 20... Rxd7 {[%clk 0:01:34.2]} 21.
f5 {[%clk 0:02:16.2]} 21... e5 {[%clk 0:01:30.9]} 22. f6 {[%clk 0:02:09]} 22...
g6 {[%clk 0:01:31.2]} 23. Be4 {[%clk 0:02:07.9]} 23... Nd8 {[%clk 0:01:19.8]}
24. Qg4 {[%clk 0:02:06.6]} 24... Bxe4 {[%clk 0:01:18.9]} 25. Nxe4 {[%clk
0:01:55.1]} 25... Qe6 {[%clk 0:01:17.4]} 26. Qd1 {[%clk 0:01:52.4]} 26... Nb7
{[%clk 0:01:14.1]} 27. Bc1 {[%clk 0:01:48.7]} 27... Qc6 {[%clk 0:01:08.5]} 28.
Qg4 {[%clk 0:01:44.8]} 28... Qe6 {[%clk 0:01:08]} 29. Qh4 {[%clk 0:01:44.5]}
29... Nd6 {[%clk 0:00:46.9]} 30. Nc5 {[%clk 0:01:41]} 1-0

[Event "Early-Titled-Tuesday-Blitz-October-03-2023"]
[Site "Chess.com"]
[Date "2023.10.03"]
[Round "1"]
[White "jup1978"]
[Black "Grischuk"]
[Result "0-1"]
[WhiteElo "2507"]
[BlackElo "3008"]
[TimeControl "180+1"]
[EndTime "8:05:01 PDT"]
[Termination "Grischuk won by resignation"]

1. d4 {[%clk 0:03:00.1]} 1... e6 {[%clk 0:02:58.8]} 2. Nf3 {[%clk 0:02:59.7]}
2... c5 {[%clk 0:02:58.1]} 3. c3 {[%clk 0:02:55.8]} 3... Nf6 {[%clk 0:02:57.8]}
4. e3 {[%clk 0:02:52.8]} 4... b6 {[%clk 0:02:50.9]} 5. Bd3 {[%clk 0:02:52.2]}
5... Bb7 {[%clk 0:02:51.1]} 6. Qe2 {[%clk 0:02:51.4]} 6... d5 {[%clk 0:02:50.6]}
7. O-O {[%clk 0:02:50.2]} 7... Nbd7 {[%clk 0:02:48.7]} 8. Nbd2 {[%clk
0:02:50.2]} 8... Bd6 {[%clk 0:02:48.4]} 9. e4 {[%clk 0:02:46]} 9... dxe4 {[%clk
0:02:36.9]} 10. Nxe4 {[%clk 0:02:46.9]} 10... Nxe4 {[%clk 0:02:30.9]} 11. Bxe4
{[%clk 0:02:47.8]} 11... Bxe4 {[%clk 0:02:31.4]} 12. Qxe4 {[%clk 0:02:48.7]}
12... O-O {[%clk 0:02:31.9]} 13. Rd1 {[%clk 0:02:36.9]} 13... Qc7 {[%clk
0:02:32]} 14. h3 {[%clk 0:02:30.4]} 14... Rfe8 {[%clk 0:02:28.5]} 15. dxc5
{[%clk 0:02:22.2]} 15... Nxc5 {[%clk 0:02:28.4]} 16. Qe2 {[%clk 0:02:22.4]}
16... e5 {[%clk 0:02:25.7]} 17. Be3 {[%clk 0:02:22.1]} 17... e4 {[%clk
0:02:25.1]} 18. Nd4 {[%clk 0:02:14.1]} 18... Nd3 {[%clk 0:02:23.7]} 19. Nb3
{[%clk 0:02:03.8]} 19... f5 {[%clk 0:02:08.8]} 20. Nc1 {[%clk 0:02:02.6]} 20...
f4 {[%clk 0:02:09.1]} 21. Bd4 {[%clk 0:01:55]} 21... f3 {[%clk 0:02:05]} 22.
gxf3 {[%clk 0:01:46.3]} 22... Nf4 {[%clk 0:02:05.2]} 23. Qf1 {[%clk 0:01:39.8]}
23... exf3 {[%clk 0:01:55.3]} 24. Be3 {[%clk 0:01:38.1]} 24... Ng2 {[%clk
0:01:49.5]} 25. Qd3 {[%clk 0:01:22.8]} 25... Rad8 {[%clk 0:01:44.9]} 26. Qd5+
{[%clk 0:01:18.5]} 26... Kh8 {[%clk 0:01:41]} 27. Qxf3 {[%clk 0:01:19]} 27...
Nxe3 {[%clk 0:01:34.2]} 28. fxe3 {[%clk 0:01:19.9]} 28... Bc5 {[%clk 0:01:27.5]}
29. Rxd8 {[%clk 0:01:13]} 29... Qxd8 {[%clk 0:01:28.4]} 30. Nb3 {[%clk
0:01:07.3]} 30... Rxe3 {[%clk 0:01:28.2]} 0-1

[Event "Early-Titled-Tuesday-Blitz-October-03-2023"]
[Site "Chess.com"]
[Date "2023.10.03"]
[Round "1"]
[White "Freefresh"]
[Black "Khromkin"]
[Result "1-0"]
[WhiteElo "2789"]
[BlackElo "2449"]
[TimeControl "180+1"]
[EndTime "8:05:01 PDT"]
[Termination "Freefresh won on time"]

1. d4 {[%clk 0:03:00.9]} 1... d5 {[%clk 0:02:58.5]} 2. c4 {[%clk 0:03:01.2]}
2... dxc4 {[%clk 0:02:58.2]} 3. e4 {[%clk 0:03:01.1]} 3... e5 {[%clk 0:02:58]}
4. Nf3 {[%clk 0:03:01.4]} 4... Bb4+ {[%clk 0:02:57.1]} 5. Nbd2 {[%clk
0:02:56.8]} 5... exd4 {[%clk 0:02:55.3]} 6. Bxc4 {[%clk 0:02:56.9]} 6... Nc6
{[%clk 0:02:54.7]} 7. O-O {[%clk 0:02:56.9]} 7... Qf6 {[%clk 0:02:54.4]} 8. a3
{[%clk 0:02:52.8]} 8... Bc5 {[%clk 0:02:41.4]} 9. b4 {[%clk 0:02:52.6]} 9... Bb6
{[%clk 0:02:41.7]} 10. Bb2 {[%clk 0:02:51.8]} 10... Nge7 {[%clk 0:02:36.4]} 11.
Nb3 {[%clk 0:02:37.2]} 11... Bg4 {[%clk 0:02:34.1]} 12. Be2 {[%clk 0:02:26.8]}
12... Rd8 {[%clk 0:02:18.6]} 13. b5 {[%clk 0:02:24.2]} 13... Bxf3 {[%clk
0:02:17.4]} 14. Bxf3 {[%clk 0:02:22.5]} 14... Ne5 {[%clk 0:02:17.8]} 15. Bg4
{[%clk 0:02:13.1]} 15... Qh4 {[%clk 0:01:58.6]} 16. Bh3 {[%clk 0:02:09.8]} 16...
g5 {[%clk 0:01:52.9]} 17. Bf5 {[%clk 0:02:05.8]} 17... Nxf5 {[%clk 0:01:44]} 18.
exf5 {[%clk 0:02:06.7]} 18... O-O {[%clk 0:01:17.2]} 19. a4 {[%clk 0:02:06.5]}
19... a6 {[%clk 0:01:13.7]} 20. bxa6 {[%clk 0:02:02]} 20... bxa6 {[%clk
0:01:13.8]} 21. a5 {[%clk 0:02:02.3]} 21... Ba7 {[%clk 0:01:13.2]} 22. Rc1
{[%clk 0:02:03.2]} 22... Rb8 {[%clk 0:00:37.1]} 23. Rxc7 {[%clk 0:02:00.6]} 1-0

[Event "Early-Titled-Tuesday-Blitz-October-03-2023"]
[Site "Chess.com"]
[Date "2023.10.03"]
[Round "1"]
[White "Wizard_97"]
[Black "JACK_BAU3R"]
[Result "1-0"]
[WhiteElo "2528"]
[BlackElo "1998"]
[TimeControl "180+1"]
[EndTime "8:05:01 PDT"]
[Termination "Wizard_97 won on time"]

1. e4 {[%clk 0:03:00.9]} 1... d6 {[%clk 0:02:59.9]} 2. d4 {[%clk 0:02:49.4]}
2... Nf6 {[%clk 0:03:00]} 3. Nc3 {[%clk 0:02:49]} 3... e5 {[%clk 0:03:00.3]} 4.
Nf3 {[%clk 0:02:48.2]} 4... exd4 {[%clk 0:03:00.1]} 5. Nxd4 {[%clk 0:02:47.8]}
5... Be7 {[%clk 0:03:01]} 6. Bc4 {[%clk 0:02:47.3]} 6... O-O {[%clk 0:03:01]} 7.
O-O {[%clk 0:02:48]} 7... Nbd7 {[%clk 0:03:00.7]} 8. Re1 {[%clk 0:02:48.3]} 8...
a6 {[%clk 0:03:01.1]} 9. a4 {[%clk 0:02:47.9]} 9... Re8 {[%clk 0:03:01.1]} 10.
a5 {[%clk 0:02:48.4]} 10... Bf8 {[%clk 0:02:52.4]} 11. Bg5 {[%clk 0:02:46.4]}
11... h6 {[%clk 0:02:51.9]} 12. Bh4 {[%clk 0:02:45.6]} 12... Ne5 {[%clk
0:02:32.8]} 13. Bb3 {[%clk 0:02:44.9]} 13... c5 {[%clk 0:01:42.7]} 14. Nf5
{[%clk 0:02:40.5]} 14... g5 {[%clk 0:00:57.5]} 15. Bg3 {[%clk 0:02:37.1]} 15...
Be6 {[%clk 0:00:52.1]} 16. Nd5 {[%clk 0:02:31.7]} 16... c4 {[%clk 0:00:40.5]}
17. Bxe5 {[%clk 0:02:26]} 17... Nxd5 {[%clk 0:00:26.8]} 18. Bxc4 {[%clk
0:02:14.4]} 18... dxe5 {[%clk 0:00:20.6]} 19. Bxd5 {[%clk 0:02:13.6]} 19... Bxd5
{[%clk 0:00:08.3]} 20. exd5 {[%clk 0:02:12.3]} 20... Rc8 {[%clk 0:00:06.3]} 21.
h4 {[%clk 0:02:05.7]} 21... Rc5 {[%clk 0:00:04.5]} 22. d6 {[%clk 0:01:57.5]} 1-0

[Event "Early-Titled-Tuesday-Blitz-October-03-2023"]
[Site "Chess.com"]
[Date "2023.10.03"]
[Round "1"]
[White "Ermito2020"]
[Black "MBA_CHESS_2021"]
[Result "1-0"]
[WhiteElo "2594"]
[BlackElo "2248"]
[TimeControl "180+1"]
[EndTime "8:05:06 PDT"]
[Termination "Ermito2020 won by resignation"]

1. e4 {[%clk 0:02:58.4]} 1... e5 {[%clk 0:02:57.8]} 2. Nf3 {[%clk 0:02:57.6]}
2... Nc6 {[%clk 0:02:55.7]} 3. Nc3 {[%clk 0:02:55.5]} 3... Nf6 {[%clk
0:02:54.9]} 4. Bb5 {[%clk 0:02:53]} 4... d6 {[%clk 0:02:51.5]} 5. d4 {[%clk
0:02:51.3]} 5... exd4 {[%clk 0:02:51.2]} 6. Nxd4 {[%clk 0:02:51.9]} 6... Bd7
{[%clk 0:02:51.6]} 7. O-O {[%clk 0:02:51.1]} 7... Be7 {[%clk 0:02:48.9]} 8. Re1
{[%clk 0:02:50.1]} 8... Nxd4 {[%clk 0:02:46.4]} 9. Qxd4 {[%clk 0:02:51]} 9...
O-O {[%clk 0:02:44.4]} 10. Bg5 {[%clk 0:02:40]} 10... h6 {[%clk 0:02:35.5]} 11.
Bh4 {[%clk 0:02:25.2]} 11... Bxb5 {[%clk 0:02:28.9]} 12. Nxb5 {[%clk 0:02:26.1]}
12... Nd7 {[%clk 0:02:25]} 13. Bxe7 {[%clk 0:02:23.8]} 13... Qxe7 {[%clk
0:02:24.4]} 14. Nxc7 {[%clk 0:02:24.3]} 14... Rfc8 {[%clk 0:02:18.1]} 15. Nxa8
{[%clk 0:02:21.8]} 15... Rxa8 {[%clk 0:02:16.9]} 16. Rad1 {[%clk 0:02:20.4]}
16... Ne5 {[%clk 0:02:13.1]} 17. Qxd6 {[%clk 0:02:18]} 17... Qg5 {[%clk
0:02:13.2]} 18. Kh1 {[%clk 0:01:47.1]} 18... Re8 {[%clk 0:02:03]} 19. Qd2 {[%clk
0:01:42.2]} 19... Qh5 {[%clk 0:02:00.5]} 20. f4 {[%clk 0:01:38.2]} 20... Ng4
{[%clk 0:01:57.2]} 21. h3 {[%clk 0:01:36.3]} 21... Qh4 {[%clk 0:01:52.8]} 22.
Kg1 {[%clk 0:01:31.5]} 22... Nf6 {[%clk 0:01:51.7]} 23. e5 {[%clk 0:01:30.6]}
23... Nh5 {[%clk 0:01:50.9]} 24. Rf1 {[%clk 0:01:27.2]} 24... Rc8 {[%clk
0:01:40.9]} 25. c3 {[%clk 0:01:24.9]} 25... Ng3 {[%clk 0:01:34.9]} 26. Qf2
{[%clk 0:01:22.9]} 26... Rc4 {[%clk 0:01:30]} 27. Rd4 {[%clk 0:01:16.9]} 27...
Rc6 {[%clk 0:01:18.7]} 28. f5 {[%clk 0:01:09.1]} 28... Nxf1 {[%clk 0:01:12.3]}
29. Qxh4 {[%clk 0:01:03.7]} 1-0

[Event "Early-Titled-Tuesday-Blitz-October-03-2023"]
[Site "Chess.com"]
[Date "2023.10.03"]
[Round "1"]
[White "chess94cu"]
[Black "Roedor"]
[Result "1-0"]
[WhiteElo "2707"]
[BlackElo "2398"]
[TimeControl "180+1"]
[EndTime "8:05:09 PDT"]
[Termination "chess94cu won by resignation"]

1. Nf3 {[%clk 0:03:00.9]} 1... Nf6 {[%clk 0:02:51.9]} 2. c4 {[%clk 0:03:01.8]}
2... g6 {[%clk 0:02:51]} 3. Nc3 {[%clk 0:03:01.3]} 3... Bg7 {[%clk 0:02:47.8]}
4. g3 {[%clk 0:03:01.9]} 4... O-O {[%clk 0:02:47.6]} 5. Bg2 {[%clk 0:03:02.5]}
5... d6 {[%clk 0:02:46.7]} 6. d4 {[%clk 0:03:02.5]} 6... Nc6 {[%clk 0:02:46.8]}
7. O-O {[%clk 0:03:03]} 7... Bf5 {[%clk 0:02:46.8]} 8. d5 {[%clk 0:02:55.6]}
8... Na5 {[%clk 0:02:46.6]} 9. Nd2 {[%clk 0:02:56.3]} 9... c5 {[%clk 0:02:46]}
10. e4 {[%clk 0:02:56.6]} 10... Bd7 {[%clk 0:02:45.7]} 11. Qc2 {[%clk
0:02:53.7]} 11... e5 {[%clk 0:02:44]} 12. h3 {[%clk 0:02:51.1]} 12... Ne8 {[%clk
0:02:35.9]} 13. b3 {[%clk 0:02:46.6]} 13... a6 {[%clk 0:02:31.1]} 14. Bb2 {[%clk
0:02:44.5]} 14... f5 {[%clk 0:02:30.5]} 15. exf5 {[%clk 0:02:43.9]} 15... gxf5
{[%clk 0:02:29.6]} 16. f4 {[%clk 0:02:44.6]} 16... Rb8 {[%clk 0:02:27.2]} 17.
Rae1 {[%clk 0:02:34.8]} 17... b5 {[%clk 0:02:20.9]} 18. cxb5 {[%clk 0:02:11.8]}
18... axb5 {[%clk 0:02:21.8]} 19. fxe5 {[%clk 0:02:11.8]} 19... dxe5 {[%clk
0:02:20.4]} 20. Nd1 {[%clk 0:02:08]} 20... Qc7 {[%clk 0:02:11.5]} 21. Ne3 {[%clk
0:02:03.6]} 21... f4 {[%clk 0:01:48.2]} 22. Ng4 {[%clk 0:01:59.4]} 22... Bxg4
{[%clk 0:01:39.9]} 23. hxg4 {[%clk 0:02:00.3]} 23... fxg3 {[%clk 0:01:19]} 24.
Rxf8+ {[%clk 0:02:01.2]} 24... Kxf8 {[%clk 0:01:19.6]} 25. Qxh7 {[%clk 0:01:57]}
25... Rb6 {[%clk 0:01:10.9]} 26. g5 {[%clk 0:01:49.7]} 26... Ke7 {[%clk
0:00:28.8]} 27. Bxe5 {[%clk 0:01:44.8]} 1-0

[Event "Early-Titled-Tuesday-Blitz-October-03-2023"]
[Site "Chess.com"]
[Date "2023.10.03"]
[Round "1"]
[White "santosalberto1987"]
[Black "Witik"]
[Result "0-1"]
[WhiteElo "2471"]
[BlackElo "2838"]
[TimeControl "180+1"]
[EndTime "8:05:14 PDT"]
[Termination "Witik won by resignation"]

1. e4 {[%clk 0:03:00.9]} 1... c5 {[%clk 0:02:59.5]} 2. Nf3 {[%clk 0:03:00.6]}
2... d6 {[%clk 0:03:00]} 3. Bb5+ {[%clk 0:03:00.1]} 3... Nc6 {[%clk 0:02:57]} 4.
Bxc6+ {[%clk 0:02:58.7]} 4... bxc6 {[%clk 0:02:57.1]} 5. O-O {[%clk 0:02:58.3]}
5... e5 {[%clk 0:02:54.2]} 6. d3 {[%clk 0:02:57.8]} 6... f5 {[%clk 0:02:48]} 7.
exf5 {[%clk 0:02:50.6]} 7... Bxf5 {[%clk 0:02:42.8]} 8. Ne1 {[%clk 0:02:49]}
8... Nf6 {[%clk 0:02:39.7]} 9. f4 {[%clk 0:02:48.3]} 9... e4 {[%clk 0:02:33.6]}
10. dxe4 {[%clk 0:02:46.8]} 10... Nxe4 {[%clk 0:02:33.5]} 11. Nd2 {[%clk
0:02:34.1]} 11... Nf6 {[%clk 0:02:25.3]} 12. Nef3 {[%clk 0:02:20.7]} 12... Be7
{[%clk 0:02:24.4]} 13. b3 {[%clk 0:02:16.9]} 13... O-O {[%clk 0:02:23.9]} 14.
Bb2 {[%clk 0:02:16.8]} 14... Nd5 {[%clk 0:02:19.6]} 15. Nc4 {[%clk 0:01:56.5]}
15... Nxf4 {[%clk 0:02:18.2]} 16. Qd2 {[%clk 0:01:46.3]} 16... Nd5 {[%clk
0:01:47.5]} 17. Rae1 {[%clk 0:01:34.1]} 17... Qd7 {[%clk 0:01:40.3]} 18. Ne3
{[%clk 0:01:29.3]} 18... Nxe3 {[%clk 0:01:36.1]} 19. Rxe3 {[%clk 0:01:30.2]}
19... Rf7 {[%clk 0:01:34.8]} 20. c4 {[%clk 0:01:26.9]} 20... Raf8 {[%clk
0:01:29.5]} 21. Rd1 {[%clk 0:01:12.9]} 21... Bg4 {[%clk 0:01:19.7]} 22. Rf1
{[%clk 0:00:58.3]} 22... Bg5 {[%clk 0:01:14.2]} 0-1

[Event "Early-Titled-Tuesday-Blitz-October-03-2023"]
[Site "Chess.com"]
[Date "2023.10.03"]
[Round "1"]
[White "Real_taiatai"]
[Black "FM_Kappeler"]
[Result "1-0"]
[WhiteElo "2552"]
[BlackElo "2168"]
[TimeControl "180+1"]
[EndTime "8:05:19 PDT"]
[Termination "Real_taiatai won by checkmate"]

1. d4 {[%clk 0:03:00.9]} 1... Nf6 {[%clk 0:02:57.5]} 2. Nf3 {[%clk 0:02:58.4]}
2... e6 {[%clk 0:02:57.4]} 3. Bg5 {[%clk 0:02:58.3]} 3... c5 {[%clk 0:02:55.3]}
4. c3 {[%clk 0:02:58.2]} 4... Nc6 {[%clk 0:02:54.7]} 5. Nbd2 {[%clk 0:02:57.7]}
5... d5 {[%clk 0:02:53.1]} 6. e3 {[%clk 0:02:56.9]} 6... Be7 {[%clk 0:02:53]} 7.
Bd3 {[%clk 0:02:57.3]} 7... O-O {[%clk 0:02:52.2]} 8. O-O {[%clk 0:02:56.1]}
8... Nh5 {[%clk 0:02:34.5]} 9. Bxe7 {[%clk 0:02:52.9]} 9... Qxe7 {[%clk
0:02:34.5]} 10. dxc5 {[%clk 0:02:52.8]} 10... Qxc5 {[%clk 0:02:21.3]} 11. e4
{[%clk 0:02:43.1]} 11... Nf4 {[%clk 0:02:11.5]} 12. Bc2 {[%clk 0:02:37.5]} 12...
Rd8 {[%clk 0:01:58.7]} 13. e5 {[%clk 0:02:37.4]} 13... Qb6 {[%clk 0:01:50.3]}
14. g3 {[%clk 0:02:37]} 14... Ng6 {[%clk 0:01:49.6]} 15. Bxg6 {[%clk 0:02:22]}
15... hxg6 {[%clk 0:01:48.9]} 16. Nb3 {[%clk 0:02:21.8]} 16... Bd7 {[%clk
0:01:48]} 17. Qe2 {[%clk 0:02:16.8]} 17... Ne7 {[%clk 0:01:46.3]} 18. Rfe1
{[%clk 0:02:14.3]} 18... Bb5 {[%clk 0:01:45.1]} 19. Qd2 {[%clk 0:02:13.7]} 19...
Bc4 {[%clk 0:01:45.2]} 20. Nbd4 {[%clk 0:02:13.4]} 20... Rac8 {[%clk 0:01:40.7]}
21. h4 {[%clk 0:02:10.7]} 21... a5 {[%clk 0:01:23.7]} 22. Kg2 {[%clk 0:02:05.8]}
22... a4 {[%clk 0:01:23.7]} 23. Rh1 {[%clk 0:02:05.9]} 23... Nf5 {[%clk
0:01:13]} 24. h5 {[%clk 0:02:04.5]} 24... gxh5 {[%clk 0:01:12.4]} 25. Rxh5
{[%clk 0:02:03.8]} 25... Nxd4 {[%clk 0:00:57.7]} 26. Nxd4 {[%clk 0:02:03.2]}
26... Qa6 {[%clk 0:00:50.5]} 27. Rah1 {[%clk 0:02:00.8]} 27... Kf8 {[%clk
0:00:48.9]} 28. Qg5 {[%clk 0:01:58]} 28... Ke8 {[%clk 0:00:32.3]} 29. Qxg7
{[%clk 0:01:57.3]} 29... Bd3 {[%clk 0:00:29.8]} 30. Rh8+ {[%clk 0:01:56.2]}
30... Kd7 {[%clk 0:00:29.3]} 31. Qf6 {[%clk 0:01:56.8]} 31... Rxh8 {[%clk
0:00:20.5]} 32. Qxf7+ {[%clk 0:01:56]} 32... Kd8 {[%clk 0:00:07.4]} 33. Rxh8#
{[%clk 0:01:54.9]} 1-0

[Event "Early-Titled-Tuesday-Blitz-October-03-2023"]
[Site "Chess.com"]
[Date "2023.10.03"]
[Round "1"]
[White "grandemestregringo"]
[Black "PattyCastillo"]
[Result "1-0"]
[WhiteElo "2531"]
[BlackElo "2039"]
[TimeControl "180+1"]
[EndTime "8:05:19 PDT"]
[Termination "grandemestregringo won on time"]

1. e4 {[%clk 0:02:56.4]} 1... c5 {[%clk 0:02:45.1]} 2. Nf3 {[%clk 0:02:51.5]}
2... d5 {[%clk 0:02:37.6]} 3. exd5 {[%clk 0:02:47.8]} 3... Qxd5 {[%clk
0:02:35.5]} 4. Nc3 {[%clk 0:02:46]} 4... Qd8 {[%clk 0:02:35.1]} 5. Bb5+ {[%clk
0:02:42.4]} 5... Bd7 {[%clk 0:02:31.4]} 6. Qe2 {[%clk 0:02:37.8]} 6... Nc6
{[%clk 0:02:23.1]} 7. O-O {[%clk 0:02:33.5]} 7... Nf6 {[%clk 0:02:22.3]} 8. d3
{[%clk 0:02:32.6]} 8... e6 {[%clk 0:02:22.2]} 9. Re1 {[%clk 0:02:29]} 9... Be7
{[%clk 0:02:21.6]} 10. Bxc6 {[%clk 0:02:21.3]} 10... Bxc6 {[%clk 0:02:20.5]} 11.
Ne5 {[%clk 0:02:21.4]} 11... Rc8 {[%clk 0:02:08.5]} 12. Nxc6 {[%clk 0:02:20.1]}
12... Rxc6 {[%clk 0:02:08.3]} 13. Bf4 {[%clk 0:02:13]} 13... a6 {[%clk
0:02:03.5]} 14. Be5 {[%clk 0:02:12.4]} 14... O-O {[%clk 0:02:02.1]} 15. Rad1
{[%clk 0:02:09.9]} 15... Re8 {[%clk 0:01:37.8]} 16. d4 {[%clk 0:02:07.3]} 16...
cxd4 {[%clk 0:01:34.2]} 17. Rxd4 {[%clk 0:02:01.7]} 17... Qa5 {[%clk 0:01:19.4]}
18. g4 {[%clk 0:01:49.8]} 18... Rcc8 {[%clk 0:00:16.5]} 19. g5 {[%clk
0:01:46.1]} 19... Nd5 {[%clk 0:00:06.8]} 20. Nxd5 {[%clk 0:01:45.5]} 20... exd5
{[%clk 0:00:07]} 21. Bd6 {[%clk 0:01:46]} 1-0

[Event "Early-Titled-Tuesday-Blitz-October-03-2023"]
[Site "Chess.com"]
[Date "2023.10.03"]
[Round "1"]
[White "BigAl"]
[Black "inegrepus"]
[Result "1-0"]
[WhiteElo "2550"]
[BlackElo "2175"]
[TimeControl "180+1"]
[EndTime "8:05:21 PDT"]
[Termination "BigAl won by resignation"]

1. Nf3 {[%clk 0:03:00.9]} 1... Nf6 {[%clk 0:02:59.6]} 2. g3 {[%clk 0:03:01.5]}
2... g6 {[%clk 0:02:57.6]} 3. Bg2 {[%clk 0:03:02.4]} 3... Bg7 {[%clk 0:02:57.9]}
4. O-O {[%clk 0:03:03.3]} 4... O-O {[%clk 0:02:57.6]} 5. d3 {[%clk 0:03:04.2]}
5... c5 {[%clk 0:02:57.6]} 6. e4 {[%clk 0:03:03.7]} 6... Nc6 {[%clk 0:02:56]} 7.
Nbd2 {[%clk 0:03:00.9]} 7... d6 {[%clk 0:02:56.3]} 8. h3 {[%clk 0:02:58.2]} 8...
e5 {[%clk 0:02:55.7]} 9. a4 {[%clk 0:02:56.2]} 9... a6 {[%clk 0:02:54.5]} 10.
Nc4 {[%clk 0:02:54.8]} 10... Rb8 {[%clk 0:02:52.7]} 11. Bg5 {[%clk 0:02:53.2]}
11... b5 {[%clk 0:02:46.6]} 12. axb5 {[%clk 0:02:52.9]} 12... axb5 {[%clk
0:02:46.7]} 13. Ne3 {[%clk 0:02:53.6]} 13... h6 {[%clk 0:02:44.1]} 14. Bxf6
{[%clk 0:02:53.3]} 14... Bxf6 {[%clk 0:02:40.9]} 15. Nd2 {[%clk 0:02:52.4]}
15... Bg7 {[%clk 0:02:36.5]} 16. c3 {[%clk 0:02:48.7]} 16... Be6 {[%clk
0:02:33.1]} 17. f4 {[%clk 0:02:32.7]} 17... h5 {[%clk 0:01:49]} 18. f5 {[%clk
0:02:31]} 18... Bd7 {[%clk 0:01:48.5]} 19. Kh1 {[%clk 0:02:14.7]} 19... Bh6
{[%clk 0:01:47.4]} 20. Nd5 {[%clk 0:02:13.7]} 20... Ne7 {[%clk 0:01:34.2]} 21.
Nf6+ {[%clk 0:02:00.8]} 21... Kh8 {[%clk 0:01:34.5]} 22. Ra7 {[%clk 0:01:58.4]}
22... Bc6 {[%clk 0:01:26.5]} 23. Nxh5 {[%clk 0:01:29.8]} 23... gxh5 {[%clk
0:01:10.6]} 24. Qxh5 {[%clk 0:01:28.7]} 24... Kh7 {[%clk 0:01:09.2]} 25. Nf3
{[%clk 0:01:24.8]} 25... Rg8 {[%clk 0:00:52.6]} 26. f6 {[%clk 0:01:13]} 26...
Ng6 {[%clk 0:00:51.2]} 27. Rxf7+ {[%clk 0:01:12.2]} 1-0

[Event "Early-Titled-Tuesday-Blitz-October-03-2023"]
[Site "Chess.com"]
[Date "2023.10.03"]
[Round "1"]
[White "Mystery2007"]
[Black "BahadirOzen"]
[Result "1/2-1/2"]
[WhiteElo "2464"]
[BlackElo "2798"]
[TimeControl "180+1"]
[EndTime "8:05:23 PDT"]
[Termination "Game drawn by agreement"]

1. e4 {[%clk 0:02:59.4]} 1... g6 {[%clk 0:02:59.1]} 2. d4 {[%clk 0:02:56.1]}
2... Bg7 {[%clk 0:02:59.1]} 3. Nc3 {[%clk 0:02:56.6]} 3... a6 {[%clk 0:02:59.2]}
4. a4 {[%clk 0:02:54]} 4... d6 {[%clk 0:02:58.1]} 5. Nf3 {[%clk 0:02:53.3]} 5...
Nf6 {[%clk 0:02:57.3]} 6. h3 {[%clk 0:02:49]} 6... O-O {[%clk 0:02:57.1]} 7. Bd3
{[%clk 0:02:45.6]} 7... Nc6 {[%clk 0:02:50.8]} 8. O-O {[%clk 0:02:39.5]} 8... e5
{[%clk 0:02:50.3]} 9. dxe5 {[%clk 0:02:37.7]} 9... Nxe5 {[%clk 0:02:42.3]} 10.
Nxe5 {[%clk 0:02:37]} 10... dxe5 {[%clk 0:02:43.2]} 11. Qe2 {[%clk 0:02:36.2]}
11... Be6 {[%clk 0:02:40.2]} 12. Rd1 {[%clk 0:02:33.2]} 12... Qe7 {[%clk
0:02:36.1]} 13. Be3 {[%clk 0:02:27.1]} 13... Rfd8 {[%clk 0:02:27.7]} 14. Bc4
{[%clk 0:02:17.9]} 14... a5 {[%clk 0:02:21.7]} 15. Bxe6 {[%clk 0:02:10.7]} 15...
Qxe6 {[%clk 0:02:22.6]} 16. Qb5 {[%clk 0:02:01]} 16... b6 {[%clk 0:02:17.6]} 17.
Bg5 {[%clk 0:01:43.9]} 17... Rdc8 {[%clk 0:02:00.4]} 18. Bxf6 {[%clk 0:01:43.1]}
18... Bxf6 {[%clk 0:01:58.7]} 19. Qd7 {[%clk 0:01:37.6]} 19... Qxd7 {[%clk
0:01:58.4]} 20. Rxd7 {[%clk 0:01:38.5]} 20... c6 {[%clk 0:01:57.9]} 21. Rad1
{[%clk 0:01:37.6]} 21... Rab8 {[%clk 0:01:46.6]} 22. Kf1 {[%clk 0:01:33.4]}
22... Kf8 {[%clk 0:01:46.5]} 23. Ke2 {[%clk 0:01:33.5]} 23... Ke8 {[%clk
0:01:44.7]} 24. R7d6 {[%clk 0:01:29]} 24... Be7 {[%clk 0:01:43]} 25. R6d3 {[%clk
0:01:27]} 25... Rd8 {[%clk 0:01:41.2]} 26. Rxd8+ {[%clk 0:01:25.9]} 26... Bxd8
{[%clk 0:01:41.8]} 27. g3 {[%clk 0:01:18]} 27... Be7 {[%clk 0:01:37.9]} 28. Na2
{[%clk 0:01:14.6]} 28... f5 {[%clk 0:01:25.8]} 29. Nc1 {[%clk 0:01:06.8]} 29...
Kf7 {[%clk 0:01:19.8]} 30. Nd3 {[%clk 0:01:06.3]} 30... Ke6 {[%clk 0:01:19.4]}
31. Ke3 {[%clk 0:01:04.8]} 31... Rd8 {[%clk 0:01:17.5]} 32. f4 {[%clk 0:01:02]}
32... exf4+ {[%clk 0:01:12.3]} 33. Nxf4+ {[%clk 0:01:02.2]} 33... Kf6 {[%clk
0:01:04.1]} 34. Rxd8 {[%clk 0:01:03.1]} 34... Bxd8 {[%clk 0:01:04.2]} 1/2-1/2